[Event "Early-Titled-Tuesday-Blitz-October-03-2023"]
[Site "Chess.com"]
[Date "2023.10.03"]
[Round "2"]
[White "vladjianu"]
[Black "ivana_999"]
[Result "1/2-1/2"]
[WhiteElo "2628"]
[BlackElo "2041"]
[TimeControl "180+1"]
[EndTime "8:15:50 PDT"]
[Termination "Game drawn by repetition"]

1. d4 {[%clk 0:03:00.9]} 1... Nf6 {[%clk 0:02:59.1]} 2. c4 {[%clk 0:03:01]} 2...
c5 {[%clk 0:02:59.4]} 3. d5 {[%clk 0:03:01]} 3... e5 {[%clk 0:02:59.9]} 4. Nc3
{[%clk 0:02:53.8]} 4... d6 {[%clk 0:03:00.1]} 5. e4 {[%clk 0:02:52.9]} 5... Nbd7
{[%clk 0:02:59.8]} 6. Nf3 {[%clk 0:02:51.9]} 6... Be7 {[%clk 0:02:59.4]} 7. h3
{[%clk 0:02:50.1]} 7... Nf8 {[%clk 0:02:58.6]} 8. Be3 {[%clk 0:02:47.6]} 8...
Ng6 {[%clk 0:02:57.4]} 9. Qd2 {[%clk 0:02:47.7]} 9... h5 {[%clk 0:02:57.2]} 10.
a3 {[%clk 0:02:39.9]} 10... a5 {[%clk 0:02:53.8]} 11. g3 {[%clk 0:02:29.1]}
11... Bd7 {[%clk 0:02:48]} 12. Bd3 {[%clk 0:02:28.7]} 12... Rb8 {[%clk
0:02:29.1]} 13. Rb1 {[%clk 0:02:26.8]} 13... b6 {[%clk 0:02:26]} 14. b4 {[%clk
0:02:26.8]} 14... axb4 {[%clk 0:02:20.3]} 15. axb4 {[%clk 0:02:27.7]} 15... O-O
{[%clk 0:02:15.3]} 16. Kf1 {[%clk 0:02:19]} 16... Qc8 {[%clk 0:02:11.5]} 17. Kg2
{[%clk 0:02:18.7]} 17... h4 {[%clk 0:02:06.2]} 18. g4 {[%clk 0:02:18.6]} 18...
Bxg4 {[%clk 0:02:02.7]} 19. Ng5 {[%clk 0:01:48.7]} 19... Bd7 {[%clk 0:01:43.7]}
20. bxc5 {[%clk 0:01:49.1]} 20... bxc5 {[%clk 0:01:43.9]} 21. Rxb8 {[%clk
0:01:50]} 21... Qxb8 {[%clk 0:01:44.4]} 22. Rb1 {[%clk 0:01:50]} 22... Qc7
{[%clk 0:01:40]} 23. Be2 {[%clk 0:01:49.9]} 23... Rb8 {[%clk 0:01:37.5]} 24. Qa2
{[%clk 0:01:48.4]} 24... Rxb1 {[%clk 0:01:34.1]} 25. Qxb1 {[%clk 0:01:49.3]}
25... Qc8 {[%clk 0:01:25.6]} 26. Kh2 {[%clk 0:01:40.5]} 26... Nh7 {[%clk
0:01:16.1]} 27. Nxh7 {[%clk 0:01:35.8]} 27... Kxh7 {[%clk 0:01:17]} 28. Bf1
{[%clk 0:01:36]} 28... Qd8 {[%clk 0:01:09.7]} 29. Qd1 {[%clk 0:01:35]} 29... Kg8
{[%clk 0:01:05.8]} 30. Bg2 {[%clk 0:01:30.8]} 30... Bg5 {[%clk 0:01:04.1]} 31.
Qh5 {[%clk 0:01:30.1]} 31... Bxe3 {[%clk 0:01:02.9]} 32. fxe3 {[%clk 0:01:31]}
32... Qf6 {[%clk 0:01:02]} 33. Qf3 {[%clk 0:01:30.2]} 33... Qxf3 {[%clk
0:01:01.2]} 34. Bxf3 {[%clk 0:01:31.1]} 34... Ne7 {[%clk 0:00:57.1]} 35. Kg2
{[%clk 0:01:29.4]} 35... g5 {[%clk 0:00:53.1]} 36. Bg4 {[%clk 0:01:28.9]} 36...
Bxg4 {[%clk 0:00:52.5]} 37. hxg4 {[%clk 0:01:29]} 37... Nc8 {[%clk 0:00:50.5]}
38. Nb5 {[%clk 0:01:24.9]} 38... Kf8 {[%clk 0:00:49.3]} 39. Kf3 {[%clk 0:01:25]}
39... Ke7 {[%clk 0:00:48.5]} 40. Kg2 {[%clk 0:01:24.4]} 40... Nb6 {[%clk
0:00:48.4]} 41. Na3 {[%clk 0:01:24.8]} 41... Nc8 {[%clk 0:00:46.9]} 42. Kf3
{[%clk 0:01:25.1]} 42... Nb6 {[%clk 0:00:47.2]} 43. Kg2 {[%clk 0:01:25.2]} 43...
Nc8 {[%clk 0:00:47.6]} 44. Kf3 {[%clk 0:01:25.6]} 44... Nb6 {[%clk 0:00:47.9]}
45. Kg2 {[%clk 0:01:25.9]} 1/2-1/2

[Event "Early-Titled-Tuesday-Blitz-October-03-2023"]
[Site "Chess.com"]
[Date "2023.10.03"]
[Round "2"]
[White "arminmusovic"]
[Black "Fradi82"]
[Result "1-0"]
[WhiteElo "2521"]
[BlackElo "2323"]
[TimeControl "180+1"]
[EndTime "8:15:53 PDT"]
[Termination "arminmusovic won by checkmate"]

1. e4 {[%clk 0:03:00.9]} 1... c5 {[%clk 0:02:52.2]} 2. c3 {[%clk 0:03:00.8]}
2... b6 {[%clk 0:02:51.3]} 3. d4 {[%clk 0:03:00.9]} 3... Bb7 {[%clk 0:02:48.9]}
4. dxc5 {[%clk 0:03:01.2]} 4... bxc5 {[%clk 0:02:45.7]} 5. Nd2 {[%clk
0:03:00.5]} 5... d6 {[%clk 0:02:38.9]} 6. Ngf3 {[%clk 0:02:59.1]} 6... Nf6
{[%clk 0:02:39.1]} 7. e5 {[%clk 0:02:58.8]} 7... dxe5 {[%clk 0:02:39]} 8. Nxe5
{[%clk 0:02:57.4]} 8... Nbd7 {[%clk 0:02:20.2]} 9. Bb5 {[%clk 0:02:49.6]} 9...
e6 {[%clk 0:02:17.9]} 10. Ndc4 {[%clk 0:02:34.4]} 10... Bxg2 {[%clk 0:02:03.1]}
11. Rg1 {[%clk 0:02:30.8]} 11... Bd5 {[%clk 0:02:02]} 12. Ne3 {[%clk 0:02:17.9]}
12... Rb8 {[%clk 0:00:22.1]} 13. Nxd5 {[%clk 0:02:04.6]} 13... exd5 {[%clk
0:00:19.7]} 14. Nc6 {[%clk 0:01:57.4]} 14... Qc7 {[%clk 0:00:16.6]} 15. Qe2+
{[%clk 0:01:52.2]} 15... Ne4 {[%clk 0:00:14]} 16. Nxb8 {[%clk 0:01:51.4]} 16...
Qxb8 {[%clk 0:00:13.1]} 17. f3 {[%clk 0:01:50.3]} 17... f5 {[%clk 0:00:08]} 18.
fxe4 {[%clk 0:01:48.8]} 18... fxe4 {[%clk 0:00:06.7]} 19. Qh5+ {[%clk
0:01:37.8]} 19... g6 {[%clk 0:00:06.5]} 20. Bxd7+ {[%clk 0:01:37.7]} 20... Kxd7
{[%clk 0:00:06.1]} 21. Qxd5+ {[%clk 0:01:38.6]} 21... Qd6 {[%clk 0:00:06.2]} 22.
Qxd6+ {[%clk 0:01:38.7]} 22... Bxd6 {[%clk 0:00:07.1]} 23. Be3 {[%clk
0:01:37.6]} 23... Rf8 {[%clk 0:00:06.6]} 24. Rd1 {[%clk 0:01:36.6]} 24... Kc6
{[%clk 0:00:05.3]} 25. Rg5 {[%clk 0:01:34.9]} 25... Rf3 {[%clk 0:00:03.9]} 26.
Ke2 {[%clk 0:01:33.5]} 26... Bxh2 {[%clk 0:00:03.8]} 27. Rxc5+ {[%clk
0:01:32.7]} 27... Kb7 {[%clk 0:00:04.2]} 28. Rd7+ {[%clk 0:01:32]} 28... Kb8
{[%clk 0:00:03.2]} 29. Rb5+ {[%clk 0:01:26.2]} 29... Ka8 {[%clk 0:00:03.2]} 30.
Rxa7# {[%clk 0:01:25.8]} 1-0

[Event "Early-Titled-Tuesday-Blitz-October-03-2023"]
[Site "Chess.com"]
[Date "2023.10.03"]
[Round "2"]
[White "Let_it_be_1"]
[Black "novocane"]
[Result "1-0"]
[WhiteElo "2616"]
[BlackElo "2356"]
[TimeControl "180+1"]
[EndTime "8:15:59 PDT"]
[Termination "Let_it_be_1 won by resignation"]

1. e4 {[%clk 0:03:00.9]} 1... c5 {[%clk 0:02:59.6]} 2. Nf3 {[%clk 0:03:00.8]}
2... Nc6 {[%clk 0:02:59.7]} 3. d4 {[%clk 0:03:01.1]} 3... cxd4 {[%clk
0:03:00.5]} 4. Nxd4 {[%clk 0:03:01.7]} 4... e5 {[%clk 0:03:00.7]} 5. Nb5 {[%clk
0:03:01.4]} 5... d6 {[%clk 0:03:01.3]} 6. Bc4 {[%clk 0:03:00]} 6... Be6 {[%clk
0:02:52]} 7. Bd5 {[%clk 0:02:58.7]} 7... a6 {[%clk 0:02:35.3]} 8. N5c3 {[%clk
0:02:57.1]} 8... Nf6 {[%clk 0:02:33.5]} 9. Bg5 {[%clk 0:02:56.5]} 9... Be7
{[%clk 0:02:31.8]} 10. Bxf6 {[%clk 0:02:56.2]} 10... Bxf6 {[%clk 0:02:32]} 11.
O-O {[%clk 0:02:56.3]} 11... O-O {[%clk 0:02:31.5]} 12. a4 {[%clk 0:02:56.2]}
12... Rb8 {[%clk 0:02:29.6]} 13. Na3 {[%clk 0:02:55.2]} 13... Nb4 {[%clk
0:02:29.9]} 14. Nc4 {[%clk 0:02:46.6]} 14... Qc7 {[%clk 0:02:22.6]} 15. Ne3
{[%clk 0:02:14.4]} 15... Rfc8 {[%clk 0:02:19.1]} 16. g3 {[%clk 0:01:54]} 16...
Bg5 {[%clk 0:02:13.7]} 17. f4 {[%clk 0:01:49]} 17... exf4 {[%clk 0:02:07.5]} 18.
gxf4 {[%clk 0:01:48.8]} 18... Bh6 {[%clk 0:02:03]} 19. Kh1 {[%clk 0:01:40.5]}
19... Qb6 {[%clk 0:01:37.3]} 20. Bxe6 {[%clk 0:01:26.5]} 20... Qxe3 {[%clk
0:00:53.9]} 21. Bxc8 {[%clk 0:01:24]} 21... Rxc8 {[%clk 0:00:54.8]} 22. Qf3
{[%clk 0:01:11.7]} 22... Nxc2 {[%clk 0:00:47.6]} 23. Rad1 {[%clk 0:01:09.6]}
23... Qb6 {[%clk 0:00:19.4]} 24. Nd5 {[%clk 0:01:07.5]} 24... Qxb2 {[%clk
0:00:19.6]} 25. Ne7+ {[%clk 0:01:04.7]} 1-0

[Event "Early-Titled-Tuesday-Blitz-October-03-2023"]
[Site "Chess.com"]
[Date "2023.10.03"]
[Round "2"]
[White "AleksandrAleksikov"]
[Black "Juicy_Fork"]
[Result "0-1"]
[WhiteElo "2207"]
[BlackElo "2470"]
[TimeControl "180+1"]
[EndTime "8:15:59 PDT"]
[Termination "Juicy_Fork won on time"]

1. e4 {[%clk 0:03:00.9]} 1... e5 {[%clk 0:02:59.6]} 2. Nf3 {[%clk 0:03:00.7]}
2... Nc6 {[%clk 0:03:00.1]} 3. c3 {[%clk 0:03:00.7]} 3... d5 {[%clk 0:02:58.5]}
4. Qa4 {[%clk 0:02:59.3]} 4... f6 {[%clk 0:02:58.8]} 5. Bb5 {[%clk 0:02:57.2]}
5... Ne7 {[%clk 0:02:55.7]} 6. exd5 {[%clk 0:02:57.1]} 6... Qxd5 {[%clk
0:02:55.4]} 7. d4 {[%clk 0:02:57.8]} 7... e4 {[%clk 0:02:51.1]} 8. c4 {[%clk
0:02:57.8]} 8... Qh5 {[%clk 0:02:39.7]} 9. Nfd2 {[%clk 0:02:55.8]} 9... Bd7
{[%clk 0:02:34.4]} 10. Nxe4 {[%clk 0:02:33.8]} 10... Qg4 {[%clk 0:02:28.2]} 11.
Ng3 {[%clk 0:02:14.6]} 11... Nxd4 {[%clk 0:02:20.2]} 12. Bxd7+ {[%clk
0:02:10.9]} 12... Qxd7 {[%clk 0:02:21.1]} 13. Qd1 {[%clk 0:02:01.9]} 13... O-O-O
{[%clk 0:02:18.4]} 14. Be3 {[%clk 0:01:58.3]} 14... Nec6 {[%clk 0:02:18]} 15.
Nc3 {[%clk 0:01:55.6]} 15... h5 {[%clk 0:02:16.2]} 16. h3 {[%clk 0:01:48.2]}
16... h4 {[%clk 0:02:15.6]} 17. Nge2 {[%clk 0:01:46.5]} 17... Nf5 {[%clk
0:01:56.5]} 18. Qxd7+ {[%clk 0:01:43.6]} 18... Rxd7 {[%clk 0:01:57.4]} 19. Bf4
{[%clk 0:01:42.2]} 19... g5 {[%clk 0:01:52.5]} 20. Bh2 {[%clk 0:01:40.4]} 20...
Ncd4 {[%clk 0:01:51.6]} 21. O-O-O {[%clk 0:01:36.8]} 21... Bb4 {[%clk
0:01:50.2]} 22. Nxd4 {[%clk 0:01:28.4]} 22... Rxd4 {[%clk 0:01:36.3]} 23. Rxd4
{[%clk 0:01:04.6]} 23... Nxd4 {[%clk 0:01:37.2]} 24. Nd5 {[%clk 0:01:03.7]}
24... Bd6 {[%clk 0:01:33]} 25. Bxd6 {[%clk 0:00:59.6]} 25... cxd6 {[%clk
0:01:33.9]} 26. Re1 {[%clk 0:00:51.8]} 26... f5 {[%clk 0:01:19.5]} 0-1

[Event "Early-Titled-Tuesday-Blitz-October-03-2023"]
[Site "Chess.com"]
[Date "2023.10.03"]
[Round "2"]
[White "Alexchess1984"]
[Black "AniJak"]
[Result "1-0"]
[WhiteElo "2722"]
[BlackElo "2384"]
[TimeControl "180+1"]
[EndTime "8:16:01 PDT"]
[Termination "Alexchess1984 won by resignation"]

1. e4 {[%clk 0:03:00]} 1... c6 {[%clk 0:02:59.1]} 2. d4 {[%clk 0:02:59.6]} 2...
d5 {[%clk 0:02:59.3]} 3. exd5 {[%clk 0:02:58.6]} 3... cxd5 {[%clk 0:02:59.3]} 4.
c4 {[%clk 0:02:58.5]} 4... Nf6 {[%clk 0:02:58]} 5. Nc3 {[%clk 0:02:58.4]} 5...
Nc6 {[%clk 0:02:56.6]} 6. Nf3 {[%clk 0:02:57.8]} 6... Bg4 {[%clk 0:02:55.3]} 7.
cxd5 {[%clk 0:02:57.5]} 7... Nxd5 {[%clk 0:02:53.8]} 8. Qb3 {[%clk 0:02:55.8]}
8... Bxf3 {[%clk 0:02:45.6]} 9. gxf3 {[%clk 0:02:55.5]} 9... Nxc3 {[%clk
0:02:27.1]} 10. bxc3 {[%clk 0:02:50.6]} 10... Qc7 {[%clk 0:02:06.8]} 11. Bf4
{[%clk 0:02:44.3]} 11... e5 {[%clk 0:01:33.5]} 12. dxe5 {[%clk 0:02:37.2]} 12...
Bc5 {[%clk 0:01:29]} 13. Qc4 {[%clk 0:02:04.5]} 13... Na5 {[%clk 0:01:06.7]} 14.
Qa4+ {[%clk 0:01:59.8]} 14... Nc6 {[%clk 0:01:01.6]} 15. Qc4 {[%clk 0:01:54.2]}
15... Na5 {[%clk 0:01:00.6]} 16. Qb5+ {[%clk 0:01:54]} 16... Kf8 {[%clk
0:00:40]} 17. Be2 {[%clk 0:01:37]} 17... a6 {[%clk 0:00:36]} 18. Qa4 {[%clk
0:01:36.1]} 18... b5 {[%clk 0:00:34]} 19. Qe4 {[%clk 0:01:29.6]} 19... Re8
{[%clk 0:00:33.9]} 20. Rd1 {[%clk 0:01:22.1]} 20... f6 {[%clk 0:00:30.5]} 21.
Rg1 {[%clk 0:01:18.8]} 21... Nc6 {[%clk 0:00:25.3]} 22. exf6 {[%clk 0:01:14.3]}
22... Rxe4 {[%clk 0:00:15.2]} 23. Bxc7 {[%clk 0:01:13.5]} 23... Rxe2+ {[%clk
0:00:13.6]} 24. Kxe2 {[%clk 0:01:12.5]} 24... gxf6 {[%clk 0:00:14.5]} 25. Bd6+
{[%clk 0:01:09.9]} 25... Bxd6 {[%clk 0:00:11.3]} 26. Rxd6 {[%clk 0:01:10.1]}
26... Ne5 {[%clk 0:00:10.7]} 27. Rd8+ {[%clk 0:01:09.4]} 1-0

[Event "Early-Titled-Tuesday-Blitz-October-03-2023"]
[Site "Chess.com"]
[Date "2023.10.03"]
[Round "2"]
[White "Kildepiotr"]
[Black "FairChess_on_YouTube"]
[Result "0-1"]
[WhiteElo "2646"]
[BlackElo "3076"]
[TimeControl "180+1"]
[EndTime "8:16:02 PDT"]
[Termination "FairChess_on_YouTube won by resignation"]

1. Nf3 {[%clk 0:02:37.7]} 1... d5 {[%clk 0:02:52.3]} 2. g3 {[%clk 0:02:36.8]}
2... Nf6 {[%clk 0:02:52]} 3. Bg2 {[%clk 0:02:37.1]} 3... Bf5 {[%clk 0:02:47.6]}
4. O-O {[%clk 0:02:38]} 4... c6 {[%clk 0:02:47.4]} 5. d3 {[%clk 0:02:37.6]} 5...
h6 {[%clk 0:02:47.2]} 6. Nbd2 {[%clk 0:02:37.1]} 6... e6 {[%clk 0:02:47.2]} 7.
Qe1 {[%clk 0:02:37.2]} 7... Bh7 {[%clk 0:02:47.1]} 8. e4 {[%clk 0:02:37.4]} 8...
Be7 {[%clk 0:02:47.7]} 9. Qe2 {[%clk 0:02:37.4]} 9... O-O {[%clk 0:02:47.5]} 10.
b3 {[%clk 0:02:37.9]} 10... a5 {[%clk 0:02:46.1]} 11. a4 {[%clk 0:02:37.8]}
11... Na6 {[%clk 0:02:45.3]} 12. Bb2 {[%clk 0:02:38]} 12... Nb4 {[%clk
0:02:45.1]} 13. Ne1 {[%clk 0:02:38.4]} 13... Qb6 {[%clk 0:02:40.9]} 14. Kh1
{[%clk 0:02:37.9]} 14... Rad8 {[%clk 0:02:39.6]} 15. e5 {[%clk 0:02:35.5]} 15...
Nd7 {[%clk 0:02:38.3]} 16. f4 {[%clk 0:02:36.1]} 16... c5 {[%clk 0:02:23.3]} 17.
Rc1 {[%clk 0:02:35]} 17... Nb8 {[%clk 0:02:17.6]} 18. g4 {[%clk 0:02:33.1]}
18... N8c6 {[%clk 0:02:15.8]} 19. Ndf3 {[%clk 0:02:30.4]} 19... c4 {[%clk
0:02:11.6]} 20. dxc4 {[%clk 0:02:26.5]} 20... dxc4 {[%clk 0:02:11.5]} 21. Qxc4
{[%clk 0:02:25.9]} 21... Nd5 {[%clk 0:02:03.1]} 22. Qb5 {[%clk 0:02:15.4]} 22...
Qa7 {[%clk 0:01:55.8]} 23. f5 {[%clk 0:02:01.2]} 23... exf5 {[%clk 0:01:35.2]}
24. gxf5 {[%clk 0:02:00]} 24... Bxf5 {[%clk 0:01:35.9]} 25. Nh4 {[%clk
0:01:49.5]} 25... Bxh4 {[%clk 0:01:12.5]} 26. Rxf5 {[%clk 0:01:44.3]} 26... Ne3
{[%clk 0:01:10]} 27. Rf3 {[%clk 0:01:32.6]} 27... Bg5 {[%clk 0:00:57.2]} 28. Bh3
{[%clk 0:01:22.3]} 28... Rd2 {[%clk 0:00:43.9]} 29. Bc3 {[%clk 0:01:12.7]} 29...
Nd4 {[%clk 0:00:42.9]} 30. Qd3 {[%clk 0:00:42.8]} 30... Rxd3 {[%clk 0:00:41.2]}
0-1

[Event "Early-Titled-Tuesday-Blitz-October-03-2023"]
[Site "Chess.com"]
[Date "2023.10.03"]
[Round "2"]
[White "BeautiFullMindChess"]
[Black "ozates"]
[Result "0-1"]
[WhiteElo "2364"]
[BlackElo "2623"]
[TimeControl "180+1"]
[EndTime "8:16:04 PDT"]
[Termination "ozates won by checkmate"]

1. e4 {[%clk 0:03:00.9]} 1... e5 {[%clk 0:02:57.2]} 2. Nf3 {[%clk 0:03:00.7]}
2... Nc6 {[%clk 0:02:55.8]} 3. d4 {[%clk 0:02:59.1]} 3... exd4 {[%clk
0:02:55.7]} 4. Nxd4 {[%clk 0:03:00]} 4... Nf6 {[%clk 0:02:55.2]} 5. Nxc6 {[%clk
0:02:58.7]} 5... bxc6 {[%clk 0:02:55.2]} 6. e5 {[%clk 0:02:58.3]} 6... Qe7
{[%clk 0:02:55.4]} 7. Qe2 {[%clk 0:02:58.7]} 7... Nd5 {[%clk 0:02:55.7]} 8. g3
{[%clk 0:02:57.3]} 8... g6 {[%clk 0:02:55.3]} 9. Bg2 {[%clk 0:02:57.5]} 9... Bg7
{[%clk 0:02:55.7]} 10. f4 {[%clk 0:02:57.4]} 10... O-O {[%clk 0:02:54.1]} 11.
O-O {[%clk 0:02:54.2]} 11... d6 {[%clk 0:02:53.8]} 12. c4 {[%clk 0:02:53.5]}
12... Ba6 {[%clk 0:02:48.4]} 13. Qe4 {[%clk 0:02:46.1]} 13... Nb6 {[%clk
0:02:34.7]} 14. b3 {[%clk 0:02:35.4]} 14... d5 {[%clk 0:02:32.3]} 15. Qe3 {[%clk
0:02:21.6]} 15... Rfd8 {[%clk 0:02:31.8]} 16. Ba3 {[%clk 0:02:06.9]} 16... Qe6
{[%clk 0:02:31.1]} 17. cxd5 {[%clk 0:01:19.2]} 17... Nxd5 {[%clk 0:02:29.5]} 18.
Bxd5 {[%clk 0:01:17.9]} 18... Rxd5 {[%clk 0:02:27.6]} 19. Re1 {[%clk 0:01:12.9]}
19... Rad8 {[%clk 0:01:38.3]} 20. Nc3 {[%clk 0:01:12.1]} 20... Rd3 {[%clk
0:01:37.3]} 21. Qxa7 {[%clk 0:00:59.6]} 21... c5 {[%clk 0:01:23.7]} 22. Ne4
{[%clk 0:00:52]} 22... c4 {[%clk 0:01:11]} 23. Nc5 {[%clk 0:00:48.4]} 23... Qd5
{[%clk 0:00:53]} 24. Nxd3 {[%clk 0:00:39.2]} 24... Bb7 {[%clk 0:00:52.8]} 25.
Kf1 {[%clk 0:00:17.9]} 25... Qg2# {[%clk 0:00:51.8]} 0-1

[Event "Early-Titled-Tuesday-Blitz-October-03-2023"]
[Site "Chess.com"]
[Date "2023.10.03"]
[Round "2"]
[White "Cheer_Down"]
[Black "JAN2404"]
[Result "1-0"]
[WhiteElo "2411"]
[BlackElo "2064"]
[TimeControl "180+1"]
[EndTime "8:16:06 PDT"]
[Termination "Cheer_Down won by resignation"]

1. e4 {[%clk 0:03:00.9]} 1... c5 {[%clk 0:02:59.2]} 2. Nf3 {[%clk 0:03:00.4]}
2... d6 {[%clk 0:02:59.4]} 3. Bb5+ {[%clk 0:03:00.4]} 3... Bd7 {[%clk
0:02:56.5]} 4. Bxd7+ {[%clk 0:03:00.4]} 4... Qxd7 {[%clk 0:02:56.9]} 5. c4
{[%clk 0:03:00.7]} 5... Nc6 {[%clk 0:02:53.4]} 6. Nc3 {[%clk 0:03:00]} 6... Nf6
{[%clk 0:02:52.4]} 7. d4 {[%clk 0:03:00]} 7... cxd4 {[%clk 0:02:50.5]} 8. Nxd4
{[%clk 0:03:00.9]} 8... Rc8 {[%clk 0:02:40.8]} 9. f3 {[%clk 0:02:49.6]} 9... g6
{[%clk 0:02:33.8]} 10. Be3 {[%clk 0:02:48.5]} 10... Bg7 {[%clk 0:02:33.9]} 11.
O-O {[%clk 0:02:48.3]} 11... O-O {[%clk 0:02:32]} 12. b3 {[%clk 0:02:44]} 12...
a6 {[%clk 0:02:27.6]} 13. Qd3 {[%clk 0:02:42.9]} 13... h5 {[%clk 0:02:05.2]} 14.
Rac1 {[%clk 0:02:35]} 14... e6 {[%clk 0:01:31.8]} 15. Rfd1 {[%clk 0:02:27.2]}
15... Rfd8 {[%clk 0:01:28.4]} 16. Na4 {[%clk 0:02:18]} 16... Ne5 {[%clk
0:01:15.2]} 17. Qe2 {[%clk 0:02:16.2]} 17... Qe7 {[%clk 0:00:42.4]} 18. h3
{[%clk 0:02:08.6]} 18... d5 {[%clk 0:00:40.7]} 19. f4 {[%clk 0:02:02]} 19... Nc6
{[%clk 0:00:35.7]} 20. Nxc6 {[%clk 0:01:53.1]} 20... Rxc6 {[%clk 0:00:31.1]} 21.
cxd5 {[%clk 0:01:47]} 21... exd5 {[%clk 0:00:28.6]} 22. e5 {[%clk 0:01:46.6]}
22... Ne4 {[%clk 0:00:27.2]} 23. Rxc6 {[%clk 0:01:37.9]} 23... bxc6 {[%clk
0:00:26.7]} 24. Qxa6 {[%clk 0:01:37.7]} 24... c5 {[%clk 0:00:12.5]} 25. Qc6
{[%clk 0:01:37]} 25... d4 {[%clk 0:00:07.6]} 26. Qxe4 {[%clk 0:01:36.2]} 26...
dxe3 {[%clk 0:00:07.6]} 27. Rxd8+ {[%clk 0:01:35.9]} 27... Qxd8 {[%clk
0:00:07.8]} 28. Qxe3 {[%clk 0:01:36.4]} 28... Qd1+ {[%clk 0:00:07.3]} 29. Kh2
{[%clk 0:01:36]} 29... Qc2 {[%clk 0:00:06.8]} 30. Nxc5 {[%clk 0:01:31.5]} 30...
Qxa2 {[%clk 0:00:06.6]} 31. e6 {[%clk 0:01:31.8]} 31... Qa7 {[%clk 0:00:04.7]}
32. e7 {[%clk 0:01:28.6]} 32... Bf8 {[%clk 0:00:01.5]} 33. e8=Q {[%clk
0:01:27.1]} 1-0

[Event "Early-Titled-Tuesday-Blitz-October-03-2023"]
[Site "Chess.com"]
[Date "2023.10.03"]
[Round "2"]
[White "N4700000"]
[Black "pankajfm"]
[Result "1-0"]
[WhiteElo "2425"]
[BlackElo "2097"]
[TimeControl "180+1"]
[EndTime "8:16:10 PDT"]
[Termination "N4700000 won by resignation"]

1. e4 {[%clk 0:02:56.5]} 1... c5 {[%clk 0:02:59]} 2. Nf3 {[%clk 0:02:56.1]} 2...
d6 {[%clk 0:02:59.5]} 3. Bb5+ {[%clk 0:02:55.6]} 3... Nd7 {[%clk 0:02:58.4]} 4.
a4 {[%clk 0:02:53.6]} 4... a6 {[%clk 0:02:57.8]} 5. Be2 {[%clk 0:02:53.1]} 5...
Ngf6 {[%clk 0:02:56.7]} 6. Nc3 {[%clk 0:02:52.4]} 6... e6 {[%clk 0:02:42.9]} 7.
O-O {[%clk 0:02:50.1]} 7... Be7 {[%clk 0:02:43.4]} 8. a5 {[%clk 0:02:42.3]} 8...
O-O {[%clk 0:02:41.7]} 9. d4 {[%clk 0:02:41.7]} 9... cxd4 {[%clk 0:02:26]} 10.
Nxd4 {[%clk 0:02:42.6]} 10... Qc7 {[%clk 0:02:26.1]} 11. f4 {[%clk 0:02:32.4]}
11... b5 {[%clk 0:02:25]} 12. axb6 {[%clk 0:02:30.8]} 12... Nxb6 {[%clk
0:02:23.7]} 13. Kh1 {[%clk 0:02:19.9]} 13... Bb7 {[%clk 0:02:21.7]} 14. Bd3
{[%clk 0:02:09.7]} 14... d5 {[%clk 0:02:00]} 15. e5 {[%clk 0:02:07.3]} 15... Ne4
{[%clk 0:01:58.1]} 16. Nce2 {[%clk 0:01:59.5]} 16... Qd7 {[%clk 0:01:29.5]} 17.
f5 {[%clk 0:01:40.7]} 17... exf5 {[%clk 0:01:17.7]} 18. Nxf5 {[%clk 0:01:37.9]}
18... Bc5 {[%clk 0:00:57.5]} 19. Ned4 {[%clk 0:01:35.3]} 19... Bxd4 {[%clk
0:00:46.5]} 20. Nxd4 {[%clk 0:01:36.2]} 20... Qe7 {[%clk 0:00:47]} 21. Bf4
{[%clk 0:01:29.8]} 21... Nc4 {[%clk 0:00:31.3]} 22. Nf5 {[%clk 0:00:52.7]} 22...
Qe6 {[%clk 0:00:18.7]} 23. Qg4 {[%clk 0:00:50]} 23... Qg6 {[%clk 0:00:18]} 24.
Ne7+ {[%clk 0:00:48.5]} 1-0

[Event "Early-Titled-Tuesday-Blitz-October-03-2023"]
[Site "Chess.com"]
[Date "2023.10.03"]
[Round "2"]
[White "Zablotsky"]
[Black "UNSTOPPABLE_LEGEND"]
[Result "1-0"]
[WhiteElo "2725"]
[BlackElo "2433"]
[TimeControl "180+1"]
[EndTime "8:16:13 PDT"]
[Termination "Zablotsky won by resignation"]

1. Nf3 {[%clk 0:03:00.9]} 1... d5 {[%clk 0:02:59]} 2. g3 {[%clk 0:03:00.9]} 2...
c5 {[%clk 0:02:59.2]} 3. Bg2 {[%clk 0:03:01.2]} 3... Nc6 {[%clk 0:02:59.6]} 4.
d4 {[%clk 0:03:01.1]} 4... e6 {[%clk 0:02:59.4]} 5. O-O {[%clk 0:03:00.9]} 5...
Nf6 {[%clk 0:03:00]} 6. c4 {[%clk 0:03:01.3]} 6... dxc4 {[%clk 0:03:00.9]} 7.
Qa4 {[%clk 0:02:59.1]} 7... Bd7 {[%clk 0:03:00.8]} 8. dxc5 {[%clk 0:02:59.1]}
8... Bxc5 {[%clk 0:02:59.1]} 9. Qxc4 {[%clk 0:02:59.2]} 9... Be7 {[%clk
0:02:57.9]} 10. Nc3 {[%clk 0:02:58.8]} 10... Rc8 {[%clk 0:02:56.1]} 11. Qb3
{[%clk 0:02:51.1]} 11... Na5 {[%clk 0:02:49.9]} 12. Qc2 {[%clk 0:02:51.1]} 12...
O-O {[%clk 0:02:37.4]} 13. Ne5 {[%clk 0:02:50.7]} 13... Bb5 {[%clk 0:02:30.8]}
14. Rd1 {[%clk 0:02:45.8]} 14... Qb6 {[%clk 0:02:30.7]} 15. Be3 {[%clk
0:02:37.1]} 15... Qa6 {[%clk 0:02:30.7]} 16. a4 {[%clk 0:02:22.8]} 16... Bc4
{[%clk 0:02:14.3]} 17. Nxc4 {[%clk 0:02:11.1]} 17... Nxc4 {[%clk 0:02:15.2]} 18.
Bf4 {[%clk 0:02:06.5]} 18... Bb4 {[%clk 0:02:10.4]} 19. Qb3 {[%clk 0:01:58.8]}
19... Qb6 {[%clk 0:01:59]} 20. Nb5 {[%clk 0:01:48.2]} 20... Bc5 {[%clk
0:01:53.3]} 21. e3 {[%clk 0:01:47.5]} 21... Na5 {[%clk 0:01:45.2]} 22. Qa2
{[%clk 0:01:47.1]} 22... a6 {[%clk 0:01:43.9]} 23. Nd6 {[%clk 0:01:47.2]} 23...
Rcd8 {[%clk 0:01:39.5]} 24. Nc4 {[%clk 0:01:28.3]} 24... Nxc4 {[%clk 0:01:32.6]}
25. Qxc4 {[%clk 0:01:29.2]} 25... Rc8 {[%clk 0:01:33.1]} 26. a5 {[%clk
0:01:24.3]} 26... Qa7 {[%clk 0:01:10.5]} 27. Qb3 {[%clk 0:01:24.5]} 27... b6
{[%clk 0:01:05.1]} 28. axb6 {[%clk 0:01:17.8]} 28... Bxb6 {[%clk 0:01:02.7]} 29.
Rd6 {[%clk 0:01:15]} 29... Rb8 {[%clk 0:00:53.7]} 30. Qd3 {[%clk 0:01:14.5]}
30... Rfd8 {[%clk 0:00:48.4]} 31. Rxa6 {[%clk 0:01:12.1]} 31... Qc7 {[%clk
0:00:30.7]} 32. Raxb6 {[%clk 0:01:00.8]} 1-0